[Event "Late-Titled-Tuesday-Blitz-April-30-2024"]
[Site "Chess.com"]
[Date "2024.04.30"]
[Round "9"]
[White "Attacker_2006"]
[Black "LeninGuerra"]
[Result "0-1"]
[WhiteElo "2520"]
[BlackElo "2669"]
[TimeControl "180+1"]
[EndTime "15:44:11 PDT"]
[Termination "LeninGuerra won by checkmate"]

1. e4 {[%clk 0:02:55]} 1... c5 {[%clk 0:02:59.7]} 2. Nf3 {[%clk 0:02:54.4]} 2...
e6 {[%clk 0:03:00.1]} 3. c3 {[%clk 0:02:54.3]} 3... b6 {[%clk 0:02:59.9]} 4. d4
{[%clk 0:02:54.2]} 4... cxd4 {[%clk 0:03:00.8]} 5. cxd4 {[%clk 0:02:55.1]} 5...
d6 {[%clk 0:03:01.7]} 6. Nc3 {[%clk 0:02:55.4]} 6... Bb7 {[%clk 0:02:59.4]} 7.
Bd3 {[%clk 0:02:55.4]} 7... Nd7 {[%clk 0:02:59.1]} 8. O-O {[%clk 0:02:55.9]}
8... e5 {[%clk 0:02:59.5]} 9. Re1 {[%clk 0:02:55.5]} 9... Ngf6 {[%clk
0:02:59.2]} 10. Bg5 {[%clk 0:02:53.4]} 10... Be7 {[%clk 0:02:59.2]} 11. Rc1
{[%clk 0:02:49.1]} 11... a6 {[%clk 0:02:58.1]} 12. Qb3 {[%clk 0:02:42.3]} 12...
O-O {[%clk 0:02:56.4]} 13. Red1 {[%clk 0:02:32]} 13... Rc8 {[%clk 0:02:52.3]}
14. dxe5 {[%clk 0:02:18.4]} 14... dxe5 {[%clk 0:02:51.9]} 15. Bxf6 {[%clk
0:02:16.1]} 15... Bxf6 {[%clk 0:02:51]} 16. Nd5 {[%clk 0:02:14.6]} 16... Nc5
{[%clk 0:02:41]} 17. Qxb6 {[%clk 0:01:58.1]} 17... Bxd5 {[%clk 0:02:20.8]} 18.
Qxd8 {[%clk 0:01:51]} 18... Rfxd8 {[%clk 0:02:21.7]} 19. exd5 {[%clk 0:01:48.8]}
19... Nxd3 {[%clk 0:02:21.5]} 20. Rxc8 {[%clk 0:01:36.9]} 20... Rxc8 {[%clk
0:02:22.4]} 21. h3 {[%clk 0:01:36.1]} 21... e4 {[%clk 0:02:21.3]} 22. Nd2 {[%clk
0:01:32.3]} 22... Nxb2 {[%clk 0:02:20.8]} 23. Re1 {[%clk 0:01:29.8]} 23... h6
{[%clk 0:02:10.1]} 24. Nxe4 {[%clk 0:01:29]} 24... Rd8 {[%clk 0:02:07.9]} 25. d6
{[%clk 0:01:22.8]} 25... Nc4 {[%clk 0:02:06.8]} 26. Nxf6+ {[%clk 0:01:13.4]}
26... gxf6 {[%clk 0:02:06.2]} 27. Rc1 {[%clk 0:01:13.8]} 27... Nxd6 {[%clk
0:02:03.8]} 28. Rc6 {[%clk 0:01:14.4]} 28... a5 {[%clk 0:02:03.8]} 29. Ra6
{[%clk 0:01:13.2]} 29... Nc4 {[%clk 0:01:59.3]} 30. Rc6 {[%clk 0:01:13.8]} 30...
Rd4 {[%clk 0:01:56.7]} 31. Rxf6 {[%clk 0:01:12.5]} 31... Kg7 {[%clk 0:01:57]}
32. Rf5 {[%clk 0:01:11.4]} 32... a4 {[%clk 0:01:49.3]} 33. g4 {[%clk 0:01:06]}
33... Nd6 {[%clk 0:01:45.4]} 34. Ra5 {[%clk 0:01:04.8]} 34... Ne4 {[%clk
0:01:45.4]} 35. Kg2 {[%clk 0:00:55.6]} 35... Nc3 {[%clk 0:01:45]} 36. a3 {[%clk
0:00:53.1]} 36... Nb1 {[%clk 0:01:43.9]} 37. Kg3 {[%clk 0:00:42.7]} 37... Nxa3
{[%clk 0:01:43.1]} 38. f4 {[%clk 0:00:40.1]} 38... Nc2 {[%clk 0:01:39.8]} 39. g5
{[%clk 0:00:33.7]} 39... h5 {[%clk 0:01:24.6]} 40. f5 {[%clk 0:00:29.2]} 40...
h4+ {[%clk 0:01:20.2]} 41. Kf3 {[%clk 0:00:27.7]} 41... a3 {[%clk 0:01:18.7]}
42. Ra7 {[%clk 0:00:25.5]} 42... Kf8 {[%clk 0:01:00]} 43. Ra8+ {[%clk
0:00:24.4]} 43... Ke7 {[%clk 0:01:00.1]} 44. Ra7+ {[%clk 0:00:25]} 44... Rd7
{[%clk 0:00:59.8]} 45. Ra6 {[%clk 0:00:23.6]} 45... Rd3+ {[%clk 0:00:55.1]} 46.
Ke4 {[%clk 0:00:23.6]} 46... Rxh3 {[%clk 0:00:53]} 47. Ke5 {[%clk 0:00:22.5]}
47... Re3+ {[%clk 0:00:51.6]} 48. Kf4 {[%clk 0:00:23]} 48... h3 {[%clk
0:00:46.1]} 49. Ra7+ {[%clk 0:00:23.2]} 49... Kf8 {[%clk 0:00:41.7]} 50. g6
{[%clk 0:00:19.4]} 50... fxg6 {[%clk 0:00:41.2]} 51. fxg6 {[%clk 0:00:18.5]}
51... h2 {[%clk 0:00:40.8]} 52. Rh7 {[%clk 0:00:15.9]} 52... a2 {[%clk
0:00:38.4]} 53. Rxh2 {[%clk 0:00:14.7]} 53... a1=Q {[%clk 0:00:36.9]} 54. Rxc2
{[%clk 0:00:15.3]} 54... Qe5+ {[%clk 0:00:36.7]} 55. Kg4 {[%clk 0:00:14.6]}
55... Rg3+ {[%clk 0:00:37.6]} 56. Kh4 {[%clk 0:00:14.8]} 56... Qg5# {[%clk
0:00:38.5]} 0-1

[Event "Late-Titled-Tuesday-Blitz-April-30-2024"]
[Site "Chess.com"]
[Date "2024.04.30"]
[Round "9"]
[White "Agustin_Meza"]
[Black "Good_Knight_Kiss"]
[Result "1-0"]
[WhiteElo "2163"]
[BlackElo "2323"]
[TimeControl "180+1"]
[EndTime "15:44:16 PDT"]
[Termination "Agustin_Meza won on time"]

1. e4 {[%clk 0:02:59.4]} 1... c5 {[%clk 0:02:59.1]} 2. Nf3 {[%clk 0:02:58.6]}
2... d6 {[%clk 0:02:58.1]} 3. d4 {[%clk 0:02:58.7]} 3... cxd4 {[%clk 0:02:59]}
4. Nxd4 {[%clk 0:02:59.6]} 4... Nf6 {[%clk 0:02:59.6]} 5. Nc3 {[%clk 0:03:00.2]}
5... a6 {[%clk 0:03:00.2]} 6. a4 {[%clk 0:02:59.2]} 6... e6 {[%clk 0:02:59.8]}
7. Bc4 {[%clk 0:02:59.4]} 7... Be7 {[%clk 0:02:59.9]} 8. Be3 {[%clk 0:02:58.2]}
8... O-O {[%clk 0:02:59.2]} 9. O-O {[%clk 0:02:57.4]} 9... Nc6 {[%clk
0:02:53.6]} 10. h3 {[%clk 0:02:49.6]} 10... Nxd4 {[%clk 0:02:34.9]} 11. Bxd4
{[%clk 0:02:48.6]} 11... e5 {[%clk 0:02:35.6]} 12. Be3 {[%clk 0:02:48.5]} 12...
Be6 {[%clk 0:02:35.8]} 13. Bd5 {[%clk 0:02:44.8]} 13... Nxd5 {[%clk 0:02:27.4]}
14. Nxd5 {[%clk 0:02:43.5]} 14... Bxd5 {[%clk 0:02:14.9]} 15. Qxd5 {[%clk
0:02:44.4]} 15... Qc7 {[%clk 0:02:14.7]} 16. c3 {[%clk 0:02:39.5]} 16... Rac8
{[%clk 0:02:05.5]} 17. Rad1 {[%clk 0:02:37.4]} 17... Qc6 {[%clk 0:02:03.2]} 18.
a5 {[%clk 0:02:31.6]} 18... Qxd5 {[%clk 0:01:58.4]} 19. Rxd5 {[%clk 0:02:32.5]}
19... Rc4 {[%clk 0:01:57.8]} 20. f3 {[%clk 0:02:30.9]} 20... Rfc8 {[%clk
0:01:54.6]} 21. Rfd1 {[%clk 0:02:28]} 21... Ra4 {[%clk 0:01:50.9]} 22. Kf2
{[%clk 0:02:15.3]} 22... f6 {[%clk 0:01:50.5]} 23. Ke2 {[%clk 0:02:11.6]} 23...
Ra2 {[%clk 0:01:45.6]} 24. R1d2 {[%clk 0:02:08.4]} 24... Kf7 {[%clk 0:01:42.1]}
25. Bb6 {[%clk 0:02:04.6]} 25... Ke6 {[%clk 0:01:40]} 26. b4 {[%clk 0:01:49.6]}
26... Ra3 {[%clk 0:01:35]} 27. b5 {[%clk 0:01:35.1]} 27... Raxc3 {[%clk
0:01:21.5]} 28. bxa6 {[%clk 0:01:35]} 28... bxa6 {[%clk 0:01:22.4]} 29. R5d3
{[%clk 0:01:31.8]} 29... g6 {[%clk 0:01:12.7]} 30. Be3 {[%clk 0:01:06.2]} 30...
Rxd3 {[%clk 0:01:04.4]} 31. Kxd3 {[%clk 0:01:07.1]} 31... Bd8 {[%clk 0:01:03.7]}
32. Bb6 {[%clk 0:01:02.2]} 32... Bxb6 {[%clk 0:00:56.8]} 33. axb6 {[%clk
0:01:03.1]} 33... Rb8 {[%clk 0:00:56.7]} 34. Rb2 {[%clk 0:01:03.1]} 34... Kd7
{[%clk 0:00:56.7]} 35. Kc4 {[%clk 0:00:53.2]} 35... Kc6 {[%clk 0:00:56.6]} 36.
b7 {[%clk 0:00:48.2]} 36... Rxb7 {[%clk 0:00:52.9]} 37. Ra2 {[%clk 0:00:48.5]}
37... Ra7 {[%clk 0:00:42.7]} 38. Ra5 {[%clk 0:00:47.6]} 38... f5 {[%clk
0:00:39.1]} 39. h4 {[%clk 0:00:42.8]} 39... Kb6 {[%clk 0:00:34]} 40. Ra2 {[%clk
0:00:39.7]} 40... a5 {[%clk 0:00:27.8]} 41. Kd5 {[%clk 0:00:39.9]} 41... fxe4
{[%clk 0:00:19.5]} 42. fxe4 {[%clk 0:00:39.7]} 42... Kb5 {[%clk 0:00:14.6]} 43.
Rb2+ {[%clk 0:00:37.2]} 43... Ka4 {[%clk 0:00:12.4]} 44. Kxd6 {[%clk 0:00:38.1]}
44... Ka3 {[%clk 0:00:12.7]} 45. Rb5 {[%clk 0:00:37.6]} 45... a4 {[%clk
0:00:12]} 46. Kxe5 {[%clk 0:00:38.1]} 46... Ka2 {[%clk 0:00:10]} 47. Kf6 {[%clk
0:00:38.3]} 47... a3 {[%clk 0:00:05]} 48. e5 {[%clk 0:00:38.4]} 48... Rc7 {[%clk
0:00:02.9]} 49. e6 {[%clk 0:00:37.8]} 49... Rc2 {[%clk 0:00:01.1]} 50. e7 {[%clk
0:00:37.2]} 1-0

[Event "Late-Titled-Tuesday-Blitz-April-30-2024"]
[Site "Chess.com"]
[Date "2024.04.30"]
[Round "9"]
[White "yuki_chess123"]
[Black "cristiano78"]
[Result "0-1"]
[WhiteElo "2117"]
[BlackElo "2279"]
[TimeControl "180+1"]
[EndTime "15:44:19 PDT"]
[Termination "cristiano78 won on time"]

1. Nf3 {[%clk 0:02:59]} 1... Nf6 {[%clk 0:02:59.7]} 2. d4 {[%clk 0:02:58.1]}
2... g6 {[%clk 0:02:59.9]} 3. c4 {[%clk 0:02:58.7]} 3... Bg7 {[%clk 0:03:00]} 4.
Nc3 {[%clk 0:02:59.3]} 4... d6 {[%clk 0:03:00.4]} 5. e4 {[%clk 0:03:00]} 5...
O-O {[%clk 0:03:00]} 6. Be2 {[%clk 0:03:00.6]} 6... e5 {[%clk 0:03:00.2]} 7. O-O
{[%clk 0:03:01.3]} 7... Nc6 {[%clk 0:03:00]} 8. d5 {[%clk 0:03:02]} 8... Ne7
{[%clk 0:03:00.2]} 9. Ne1 {[%clk 0:03:02.8]} 9... Nd7 {[%clk 0:02:58.8]} 10. Nd3
{[%clk 0:03:03.4]} 10... f5 {[%clk 0:02:58.9]} 11. Bd2 {[%clk 0:03:04.1]} 11...
Nf6 {[%clk 0:02:57.9]} 12. f3 {[%clk 0:03:02.6]} 12... h5 {[%clk 0:02:55.5]} 13.
a4 {[%clk 0:02:59.9]} 13... Rf7 {[%clk 0:02:53.6]} 14. Ra3 {[%clk 0:02:59.2]}
14... Bf8 {[%clk 0:02:53.7]} 15. c5 {[%clk 0:02:58.7]} 15... f4 {[%clk
0:02:51.4]} 16. cxd6 {[%clk 0:02:58.7]} 16... cxd6 {[%clk 0:02:51.3]} 17. Nf2
{[%clk 0:02:59.1]} 17... g5 {[%clk 0:02:49.8]} 18. Qc2 {[%clk 0:02:59.4]} 18...
Rg7 {[%clk 0:02:49.3]} 19. Nb5 {[%clk 0:02:58.2]} 19... Ng6 {[%clk 0:02:47.3]}
20. Rc3 {[%clk 0:02:57.3]} 20... a6 {[%clk 0:02:42.3]} 21. Rc1 {[%clk
0:02:57.9]} 21... Bd7 {[%clk 0:02:37.6]} 22. Nc7 {[%clk 0:02:55.7]} 22... Rc8
{[%clk 0:02:34.5]} 23. Ne6 {[%clk 0:02:41.7]} 23... Bxe6 {[%clk 0:02:29.3]} 24.
Rxc8 {[%clk 0:02:39]} 24... Bxc8 {[%clk 0:02:28.5]} 25. Qxc8 {[%clk 0:02:39.7]}
25... Qb6 {[%clk 0:02:19.3]} 26. Qe6+ {[%clk 0:02:10.4]} 26... Rf7 {[%clk
0:02:11.4]} 27. a5 {[%clk 0:01:59.4]} 27... Qxb2 {[%clk 0:01:46.9]} 28. Rc7
{[%clk 0:01:57]} 28... Ne7 {[%clk 0:01:47]} 29. Nh3 {[%clk 0:01:24.3]} 29...
Qd4+ {[%clk 0:00:51.5]} 30. Kf1 {[%clk 0:01:20.3]} 30... Nxe4 {[%clk 0:00:40]}
31. fxe4 {[%clk 0:01:14.1]} 31... f3 {[%clk 0:00:39.8]} 32. gxf3 {[%clk
0:01:06.1]} 32... Qxd2 {[%clk 0:00:38]} 33. f4 {[%clk 0:00:44.6]} 33... g4
{[%clk 0:00:30.9]} 34. f5 {[%clk 0:00:24.5]} 34... gxh3 {[%clk 0:00:25]} 35.
Bxh5 {[%clk 0:00:23]} 35... Qg2+ {[%clk 0:00:18.5]} 36. Ke1 {[%clk 0:00:22.6]}
36... Qxe4+ {[%clk 0:00:18.5]} 37. Be2 {[%clk 0:00:16.5]} 37... Qb1+ {[%clk
0:00:16]} 38. Kd2 {[%clk 0:00:14.9]} 38... Qb2+ {[%clk 0:00:15.1]} 39. Rc2
{[%clk 0:00:12.8]} 39... Qd4+ {[%clk 0:00:15]} 40. Bd3 {[%clk 0:00:09.4]} 40...
Nxd5 {[%clk 0:00:14.2]} 41. Qg6+ {[%clk 0:00:05]} 41... Rg7 {[%clk 0:00:13.9]}
42. Qe6+ {[%clk 0:00:02.5]} 42... Kh8 {[%clk 0:00:13.6]} 43. f6 {[%clk
0:00:00.4]} 43... Rg2+ {[%clk 0:00:12.4]} 0-1

[Event "Late-Titled-Tuesday-Blitz-April-30-2024"]
[Site "Chess.com"]
[Date "2024.04.30"]
[Round "9"]
[White "FMalexhdez"]
[Black "Bala-Afiada"]
[Result "1-0"]
[WhiteElo "2212"]
[BlackElo "2008"]
[TimeControl "180+1"]
[EndTime "15:44:19 PDT"]
[Termination "FMalexhdez won by resignation"]

1. c4 {[%clk 0:03:00.9]} 1... Nf6 {[%clk 0:02:42.1]} 2. Nc3 {[%clk 0:02:59.6]}
2... g6 {[%clk 0:02:41.5]} 3. g3 {[%clk 0:02:58.1]} 3... Bg7 {[%clk 0:02:41.4]}
4. Bg2 {[%clk 0:02:58.9]} 4... O-O {[%clk 0:02:41.6]} 5. e4 {[%clk 0:02:58.2]}
5... d6 {[%clk 0:02:40.7]} 6. d4 {[%clk 0:02:57.5]} 6... Nc6 {[%clk 0:02:37.9]}
7. Nf3 {[%clk 0:02:57.5]} 7... e5 {[%clk 0:02:37.7]} 8. dxe5 {[%clk 0:02:56.9]}
8... Nxe5 {[%clk 0:02:29.4]} 9. Nxe5 {[%clk 0:02:55.9]} 9... dxe5 {[%clk
0:02:29.2]} 10. O-O {[%clk 0:02:56.6]} 10... Qxd1 {[%clk 0:02:24]} 11. Rxd1
{[%clk 0:02:55.1]} 11... c6 {[%clk 0:02:24.9]} 12. h3 {[%clk 0:02:52.6]} 12...
Be6 {[%clk 0:02:18.2]} 13. b3 {[%clk 0:02:52.4]} 13... Rfd8 {[%clk 0:02:18.1]}
14. Ba3 {[%clk 0:02:52.4]} 14... Bf8 {[%clk 0:02:13.5]} 15. Bxf8 {[%clk
0:02:50.1]} 15... Kxf8 {[%clk 0:02:14.4]} 16. Kf1 {[%clk 0:02:43.9]} 16... Ke7
{[%clk 0:02:11.1]} 17. Ke2 {[%clk 0:02:44.1]} 17... Rxd1 {[%clk 0:02:10.4]} 18.
Rxd1 {[%clk 0:02:43.6]} 18... Rd8 {[%clk 0:02:11.3]} 19. Rxd8 {[%clk 0:02:41.3]}
19... Kxd8 {[%clk 0:02:12.2]} 20. Nd1 {[%clk 0:02:38.4]} 20... Kc7 {[%clk
0:02:09.5]} 21. Ne3 {[%clk 0:02:38.3]} 21... b5 {[%clk 0:01:41.6]} 22. f4 {[%clk
0:02:36.2]} 22... exf4 {[%clk 0:01:33.6]} 23. gxf4 {[%clk 0:02:35]} 23... Nh5
{[%clk 0:01:27.4]} 24. Kf3 {[%clk 0:02:31.7]} 24... Kd6 {[%clk 0:01:24.1]} 25.
Bf1 {[%clk 0:02:29.9]} 25... Kc5 {[%clk 0:01:21.4]} 26. f5 {[%clk 0:02:27.1]}
26... Bd7 {[%clk 0:01:05.6]} 27. cxb5 {[%clk 0:02:25.7]} 27... cxb5 {[%clk
0:01:05.6]} 28. fxg6 {[%clk 0:01:23]} 28... hxg6 {[%clk 0:01:05.3]} 29. Nd5
{[%clk 0:01:18]} 29... Bc6 {[%clk 0:00:52.9]} 30. Ne7 {[%clk 0:01:17.9]} 30...
Nf6 {[%clk 0:00:47.3]} 31. Nxc6 {[%clk 0:01:16.5]} 31... Kxc6 {[%clk 0:00:47.6]}
32. Kf4 {[%clk 0:01:14.8]} 32... a6 {[%clk 0:00:36.2]} 33. Kg5 {[%clk
0:01:09.3]} 33... Nxe4+ {[%clk 0:00:31.3]} 34. Kh6 {[%clk 0:01:09.7]} 34... Ng3
{[%clk 0:00:14.8]} 35. Bg2+ {[%clk 0:01:08.3]} 35... Kc5 {[%clk 0:00:14.6]} 36.
Kg7 {[%clk 0:01:08.4]} 36... Kb4 {[%clk 0:00:06]} 37. Kxf7 {[%clk 0:01:08.2]}
37... g5 {[%clk 0:00:05.7]} 38. Bb7 {[%clk 0:00:53.8]} 38... a5 {[%clk
0:00:05.4]} 39. Bc6 {[%clk 0:00:53.3]} 39... a4 {[%clk 0:00:04.5]} 40. bxa4
{[%clk 0:00:53]} 40... bxa4 {[%clk 0:00:05.4]} 41. Kg6 {[%clk 0:00:51.8]} 41...
a3 {[%clk 0:00:04.3]} 42. Kxg5 {[%clk 0:00:51.1]} 42... Ne2 {[%clk 0:00:04.8]}
43. h4 {[%clk 0:00:49.3]} 43... Nd4 {[%clk 0:00:03.6]} 44. Bd5 {[%clk 0:00:48]}
44... Kc3 {[%clk 0:00:02.9]} 45. h5 {[%clk 0:00:46.7]} 45... Kb2 {[%clk
0:00:03.6]} 46. h6 {[%clk 0:00:46.3]} 46... Nc2 {[%clk 0:00:01.7]} 47. h7 {[%clk
0:00:45.8]} 47... Nb4 {[%clk 0:00:02.4]} 48. h8=Q+ {[%clk 0:00:44.6]} 48... Kb1
{[%clk 0:00:03.3]} 49. Bb3 {[%clk 0:00:42.1]} 49... Nxa2 {[%clk 0:00:01.9]} 50.
Bxa2+ {[%clk 0:00:29.3]} 50... Kxa2 {[%clk 0:00:02.4]} 51. Qc3 {[%clk
0:00:29.1]} 51... Kb1 {[%clk 0:00:01.5]} 52. Qxa3 {[%clk 0:00:29]} 1-0

[Event "Late-Titled-Tuesday-Blitz-April-30-2024"]
[Site "Chess.com"]
[Date "2024.04.30"]
[Round "9"]
[White "AryanTari"]
[Black "bubeliang"]
[Result "0-1"]
[WhiteElo "2984"]
[BlackElo "2822"]
[TimeControl "180+1"]
[EndTime "15:44:22 PDT"]
[Termination "bubeliang won by resignation"]

1. a3 {[%clk 0:03:00.9]} 1... e5 {[%clk 0:02:58.1]} 2. c4 {[%clk 0:02:54.3]}
2... c6 {[%clk 0:02:54.8]} 3. d4 {[%clk 0:02:49]} 3... exd4 {[%clk 0:02:54.8]}
4. Qxd4 {[%clk 0:02:49.1]} 4... d5 {[%clk 0:02:55.3]} 5. cxd5 {[%clk 0:02:46.4]}
5... cxd5 {[%clk 0:02:56.2]} 6. Nc3 {[%clk 0:02:46.9]} 6... Nf6 {[%clk
0:02:56.4]} 7. Bg5 {[%clk 0:02:46.9]} 7... Nc6 {[%clk 0:02:48]} 8. Qd3 {[%clk
0:02:37.1]} 8... d4 {[%clk 0:02:29.4]} 9. Ne4 {[%clk 0:02:26.2]} 9... Be7 {[%clk
0:02:21.5]} 10. Bxf6 {[%clk 0:02:14.7]} 10... Bxf6 {[%clk 0:02:22.4]} 11. Nf3
{[%clk 0:02:15.1]} 11... O-O {[%clk 0:02:21.2]} 12. g3 {[%clk 0:02:04.7]} 12...
Re8 {[%clk 0:02:20.8]} 13. Bg2 {[%clk 0:02:02]} 13... Bf5 {[%clk 0:02:20.1]} 14.
Nfd2 {[%clk 0:01:59.6]} 14... Ne5 {[%clk 0:02:04.5]} 15. Qb3 {[%clk 0:01:59.7]}
15... Be6 {[%clk 0:01:53.6]} 16. Nxf6+ {[%clk 0:01:39.9]} 16... Qxf6 {[%clk
0:01:54.5]} 17. Qd1 {[%clk 0:01:40.3]} 17... Nd3+ {[%clk 0:01:19.2]} 18. exd3
{[%clk 0:01:40.2]} 18... Bg4+ {[%clk 0:01:19.7]} 19. Kf1 {[%clk 0:01:40.8]}
19... Bxd1 {[%clk 0:01:18.2]} 20. Rxd1 {[%clk 0:01:41.7]} 20... Rac8 {[%clk
0:01:14.2]} 21. Bxb7 {[%clk 0:01:36.1]} 21... Rc2 {[%clk 0:01:08.8]} 22. Be4
{[%clk 0:01:30.1]} 22... Qg5 {[%clk 0:00:44.3]} 23. Nf3 {[%clk 0:01:22.9]} 23...
Qf6 {[%clk 0:00:34.5]} 24. Kg2 {[%clk 0:01:19.7]} 24... g5 {[%clk 0:00:33]} 25.
Rhe1 {[%clk 0:01:13.5]} 25... Kg7 {[%clk 0:00:21.5]} 26. h3 {[%clk 0:01:05.2]}
26... Rxb2 {[%clk 0:00:20]} 27. Rb1 {[%clk 0:00:50.6]} 27... Reb8 {[%clk
0:00:19]} 28. Rbc1 {[%clk 0:00:48]} 28... R8b6 {[%clk 0:00:17]} 29. Rc5 {[%clk
0:00:47.6]} 29... h6 {[%clk 0:00:15.4]} 30. Rf5 {[%clk 0:00:48.3]} 30... Qd8
{[%clk 0:00:10.7]} 31. Rc1 {[%clk 0:00:38.2]} 31... Rf6 {[%clk 0:00:10.6]} 32.
Rd5 {[%clk 0:00:36.2]} 32... Qb6 {[%clk 0:00:09.8]} 33. Rc8 {[%clk 0:00:35]}
33... Qb3 {[%clk 0:00:06.4]} 34. Rdd8 {[%clk 0:00:34.5]} 34... Rxf3 {[%clk
0:00:05.6]} 35. Bxf3 {[%clk 0:00:25.8]} 35... Qa2 {[%clk 0:00:05.5]} 36. Rg8+
{[%clk 0:00:09.6]} 36... Kf6 {[%clk 0:00:05.7]} 37. Rc6+ {[%clk 0:00:04.9]}
37... Ke7 {[%clk 0:00:06.2]} 38. Rc7+ {[%clk 0:00:05]} 38... Kd6 {[%clk
0:00:06.8]} 39. Rc6+ {[%clk 0:00:05.5]} 39... Kd7 {[%clk 0:00:07.4]} 40. Rgc8
{[%clk 0:00:01.5]} 40... Rxf2+ {[%clk 0:00:07.6]} 41. Kg1 {[%clk 0:00:02.3]}
41... Rxf3 {[%clk 0:00:08.2]} 42. R8c7+ {[%clk 0:00:02.9]} 42... Ke8 {[%clk
0:00:07.3]} 43. Rc8+ {[%clk 0:00:02.8]} 43... Ke7 {[%clk 0:00:07.9]} 44. Rc2
{[%clk 0:00:01.8]} 44... Qa1+ {[%clk 0:00:07.5]} 45. Kg2 {[%clk 0:00:02.2]}
45... Qf1+ {[%clk 0:00:07.5]} 46. Kh2 {[%clk 0:00:03]} 46... Rf2+ {[%clk
0:00:08.2]} 0-1

[Event "Late-Titled-Tuesday-Blitz-April-30-2024"]
[Site "Chess.com"]
[Date "2024.04.30"]
[Round "9"]
[White "Mischuk_D"]
[Black "ChristopherYoo"]
[Result "1/2-1/2"]
[WhiteElo "2838"]
[BlackElo "3027"]
[TimeControl "180+1"]
[EndTime "15:44:24 PDT"]
[Termination "Game drawn by repetition"]

1. d4 {[%clk 0:03:00.9]} 1... d5 {[%clk 0:02:59.9]} 2. c4 {[%clk 0:03:00.8]}
2... e6 {[%clk 0:02:59.3]} 3. Nf3 {[%clk 0:03:00.2]} 3... Nf6 {[%clk 0:02:59.3]}
4. g3 {[%clk 0:02:59.9]} 4... dxc4 {[%clk 0:02:58.3]} 5. Bg2 {[%clk 0:02:58.8]}
5... a6 {[%clk 0:02:58.7]} 6. O-O {[%clk 0:02:50.9]} 6... Nc6 {[%clk 0:02:58.3]}
7. Nbd2 {[%clk 0:02:39.8]} 7... Nxd4 {[%clk 0:02:54.3]} 8. Nxc4 {[%clk 0:02:40]}
8... Nxf3+ {[%clk 0:02:48.6]} 9. Bxf3 {[%clk 0:02:39.9]} 9... Bd6 {[%clk
0:02:30.1]} 10. Qb3 {[%clk 0:02:34]} 10... O-O {[%clk 0:02:28.6]} 11. Rd1 {[%clk
0:02:33.9]} 11... Qe7 {[%clk 0:02:25.7]} 12. Bg5 {[%clk 0:02:18.8]} 12... e5
{[%clk 0:02:22.7]} 13. Nxd6 {[%clk 0:02:15.9]} 13... cxd6 {[%clk 0:02:22.4]} 14.
Qb6 {[%clk 0:02:04.5]} 14... Rd8 {[%clk 0:02:19.3]} 15. Rac1 {[%clk 0:02:03.1]}
15... h6 {[%clk 0:02:15.9]} 16. Bxf6 {[%clk 0:01:57.8]} 16... Qxf6 {[%clk
0:02:15.3]} 17. Rc7 {[%clk 0:01:53.1]} 17... Be6 {[%clk 0:02:08.4]} 18. Bxb7
{[%clk 0:01:45.3]} 18... Rab8 {[%clk 0:02:06.4]} 19. b3 {[%clk 0:01:35.8]} 19...
e4 {[%clk 0:02:00]} 20. Qd4 {[%clk 0:01:27.7]} 20... Qxd4 {[%clk 0:01:38.8]} 21.
Rxd4 {[%clk 0:01:28.6]} 21... d5 {[%clk 0:01:37.9]} 22. b4 {[%clk 0:01:15.4]}
22... Rd6 {[%clk 0:01:28.9]} 23. a3 {[%clk 0:01:01.4]} 23... Kf8 {[%clk
0:01:17]} 24. f3 {[%clk 0:01:00.8]} 24... exf3 {[%clk 0:01:14.5]} 25. exf3
{[%clk 0:01:00.5]} 25... Ke8 {[%clk 0:01:14.4]} 26. Rc6 {[%clk 0:00:52.6]} 26...
Rxc6 {[%clk 0:01:10]} 27. Bxc6+ {[%clk 0:00:53.5]} 27... Ke7 {[%clk 0:01:09.3]}
28. Kf2 {[%clk 0:00:47.9]} 28... Kd6 {[%clk 0:01:08.5]} 29. Ba4 {[%clk
0:00:48.5]} 29... Rc8 {[%clk 0:01:08.2]} 30. Rd3 {[%clk 0:00:48]} 30... Bf5
{[%clk 0:01:06.3]} 31. Rd2 {[%clk 0:00:48.2]} 31... Rc3 {[%clk 0:01:05.4]} 32.
Be8 {[%clk 0:00:45.2]} 32... Ke7 {[%clk 0:00:56.9]} 33. Ba4 {[%clk 0:00:31.8]}
33... Rxa3 {[%clk 0:00:54.6]} 34. Rxd5 {[%clk 0:00:30.7]} 34... Rxa4 {[%clk
0:00:54.2]} 35. Rxf5 {[%clk 0:00:30.9]} 35... Rxb4 {[%clk 0:00:54.8]} 36. Rc5
{[%clk 0:00:30.8]} 36... Rb2+ {[%clk 0:00:48.8]} 37. Ke3 {[%clk 0:00:30.2]}
37... Kd6 {[%clk 0:00:27.2]} 38. Ra5 {[%clk 0:00:27.1]} 38... Rb6 {[%clk
0:00:27]} 39. h4 {[%clk 0:00:26.3]} 39... Kc6 {[%clk 0:00:26.2]} 40. Kd4 {[%clk
0:00:21.4]} 40... Kb7 {[%clk 0:00:25]} 41. Rd5 {[%clk 0:00:20.6]} 41... Rc6
{[%clk 0:00:23.9]} 42. Rd7+ {[%clk 0:00:20.3]} 42... Rc7 {[%clk 0:00:24.1]} 43.
Rd6 {[%clk 0:00:20.9]} 43... a5 {[%clk 0:00:24]} 44. Ke4 {[%clk 0:00:19.8]}
44... Rc6 {[%clk 0:00:19.4]} 45. Rd7+ {[%clk 0:00:19.9]} 45... Rc7 {[%clk
0:00:15.9]} 46. Rd6 {[%clk 0:00:20.2]} 46... Ka7 {[%clk 0:00:07.3]} 47. h5
{[%clk 0:00:20.1]} 47... Kb7 {[%clk 0:00:04.7]} 48. g4 {[%clk 0:00:20.2]} 48...
Re7+ {[%clk 0:00:02.8]} 49. Kf5 {[%clk 0:00:19.4]} 49... Rc7 {[%clk 0:00:02.4]}
50. Ke4 {[%clk 0:00:19.6]} 50... Rc6 {[%clk 0:00:02.2]} 51. Rd7+ {[%clk
0:00:19.9]} 51... Rc7 {[%clk 0:00:01.7]} 52. Rd6 {[%clk 0:00:20.4]} 1/2-1/2